{"text_format":"1","workbook":"xlsx","n_sheets":3,"sheets":["Prompt","Cedula4BI","Enviar"],"not_rendered":{"charts":0,"images":4,"macros":1,"external_links":0,"defined_names":0,"comments":1,"pivot_tables":0},"unopened":[],"bounds":{"document_bytes":16777216,"sheet_cells":100000,"rows_first":2000,"rows_last":500,"rows_between":2000,"halvings":0,"cell_chars":16384,"cell_head_chars":4096},"cells_cut":0,"cells_raw":0,"read":"whole","date_system":"1900"}

{"sheet":"Prompt","index":0,"n_rows":38,"n_cols":4,"rows_kept":38,"cut":false,"hidden":false,"merged":[[0,3,1,5],[3,1,5,8],[8,1,9,8],[37,1,38,8]]}
[null,null,null,"¡ATENCIÓN!"]
[]
[]
[null,"Para hacer uso de las funcionalidades de esta Cédula Electrónica debe habilitar macros"]
[]
[]
[]
[]
[null,"Si utiliza Excel 2000, 2002, 2003 siga el siguiente procedimiento:"]
[]
[]
[]
[]
[]
[]
[]
[]
[]
[]
[]
[]
[]
[]
[]
[]
[]
[]
[]
[]
[]
[]
[]
[]
[]
[]
[]
[]
[null,"Si utiliza Excel 2007 siga el siguiente procedimiento:"]

{"sheet":"Cedula4BI","index":1,"n_rows":105,"n_cols":29,"rows_kept":105,"cut":false,"hidden":true,"merged":[[1,25,3,28],[14,7,14,24],[12,22,12,24],[28,11,28,12],[28,13,28,14],[28,23,28,24],[28,17,28,18],[28,19,28,20],[1,6,1,23],[2,6,2,23],[3,6,3,23],[4,6,4,24],[26,2,29,6],[12,7,12,8],[16,7,16,18],[26,7,28,8],[44,19,44,22],[45,17,45,18],[27,19,27,22],[27,23,27,28],[27,9,27,12],[44,9,44,12],[28,9,28,10],[28,27,28,28],[27,13,27,18],[28,21,28,22],[28,25,28,26],[28,15,28,16],[43,7,45,8],[45,23,45,24],[59,24,59,28],[54,3,54,6],[45,11,45,12],[43,2,46,6],[45,9,45,10],[44,13,44,18],[45,25,45,26],[44,23,44,28],[45,19,45,20],[45,13,45,14],[45,27,45,28],[45,15,45,16],[59,16,59,23],[45,21,45,22],[59,10,59,15],[59,2,59,9],[60,2,60,9],[62,24,62,28],[62,2,62,9],[61,10,61,15],[62,10,62,15],[61,16,61,23],[62,16,62,23],[61,2,61,9],[61,24,61,28],[60,24,60,28],[60,10,60,15],[60,16,60,23]]}
[]
[null,null,null,null,null,null,"CENSO EDUCATIVO 2022",null,null,null,null,null,null,null,null,null,null,null,null,null,null,null,null,null,null,"4BI"]
[null,null,null,null,null,null,"EDUCACIÓN BÁSICA ALTERNATIVA"]
[null,null,null,null,null,null,"(INICIAL - INTERMEDIO)"]
[null,null,null," Versión  :",1]
[null,null,"INSTRUCCIONES DEL FORMATO ELECTRÓNICO "]
[]
[]
[]
[null,null,"IDENTIFICACIÓN DEL SERVICIO EDUCATIVO"]
[]
[]
[null,null,null,"1.  CÓDIGO MODULAR :",null,null,null,null,null,null,null,null,null,null,null,null,"2. CÓDIGO DE LOCAL EDUCATIVO :"]
[]
[null,null,null,"3.  NOMBRE DEL SERVICIO :",null,null,null,""]
[]
[null,null,null,"4. DISTRITO :",null,null,null,""]
[]
[]
[]
[null,null,null,"5. TIPO DE SERVICIO :",null,null,null,"CEBA :",null,null,"Inicial",null,null,"Intermedio",null,null,null,null,null,"PERIFERICO :",null,null,null,"Inicial",null,null,"Intermedio"]
[]
[]
[null,null,"100. RESULTADO DEL EJERCICIO EDUCATIVO"]
[null,null,"Complete y remita esta sección entre diciembre del año 2022 y enero del año 2023."]
[null,null,"101. RESULTADO DEL EJERCICIO EDUCATIVO A DICIEMBRE DE 2022, POR GRADO Y SEXO, EN CEBA Y PERIFÉRICO"]
[null,null,"SITUACIÓN",null,null,null,null,"TOTAL",null,"CEBA (REFERENCIAL)",null,null,null,null,null,null,null,null,null,"PERIFÉRICO"]
[null,null,null,null,null,null,null,null,null,"Inicial",null,null,null,"Intermedio",null,null,null,null,null,"Inicial",null,null,null,"Intermedio"]
[null,null,null,null,null,null,null,null,null,"1º",null,"2º",null,"1º",null,"2º",null,"3º",null,"1º",null,"2º",null,"1º",null,"2º",null,"3º"]
[null,null,null,null,null,null,null,"H","M","H","M","H","M","H","M","H","M","H","M","H","M","H","M","H","M","H","M","H","M"]
["00",null,"  TOTAL - Matriculados",null,null,null,null,{"$f":"SUM(H32:H36)","v":0},{"$f":"SUM(I32:I36)","v":0},{"$f":"SUM(J32:J36)","v":0},{"$f":"SUM(K32:K36)","v":0},{"$f":"SUM(L32:L36)","v":0},0,0,0,0,0,0,{"$f":"SUM(S32:S36)","v":0},{"$f":"SUM(T32:T36)","v":0},{"$f":"SUM(U32:U36)","v":0},{"$f":"SUM(V32:V36)","v":0},0,0,0,0,0,0,{"$f":"SUM(AC32:AC36)","v":0}]
["01",null,"Promovido de grado",null,null,null,"1/",{"$f":"SUM(J32,L32,N32,P32,R32,T32,V32,X32,Z32,AB32)","v":0},0]
["02",null,"Promoción guiada",null,null,null,"2/",0,0]
["03",null,"Trasladados a otra IE",null,null,null,"3/",0,0]
["04",null,"Retirados",null,null,null,"4/",0,0]
["05",null,"Fallecidos",null,null,null,null,0,0]
[]
[null,null,"1/ Promovido de grado: Estudiantes que al término del ejercicio educativo 2022 fueron considerados aptos para ser promovidos al ciclo inmediato superior."]
[null,null,"2/ Promoción guiada: Estudiantes que serán promovidos de grado, pero que debido a la emergencia sanitaria, no alcanzaron todas las competencias necesarias en el año 2022."]
[null,null,"3/ Trasladados a otra I.E.: Estudiantes que se van a otra I.E. dentro o fuera de la localidad entre abril y diciembre de 2022."]
[null,null,"4/ Retirados: Estudiantes que durante el año académico 2022 dejaron de asistir por diversos motivos y no se encuentran aptos para la evaluación final."]
[]
[null,null,"102. RETIRADOS POR CICLO, GRADO DE ESTUDIO Y SEXO, SEGÚN MOTIVO EN CEBA Y PERIFÉRICO"]
[null,null,"MOTIVO",null,null,null,null,"TOTAL",null,"CEBA",null,null,null,null,null,null,null,null,null,"PERIFÉRICO"]
[null,null,null,null,null,null,null,null,null,"Inicial",null,null,null,"Intermedio",null,null,null,null,null,"Inicial",null,null,null,"Intermedio"]
[null,null,null,null,null,null,null,null,null,"1º",null,"2º",null,"1º",null,"2º",null,"3º",null,"1º",null,"2º",null,"1º",null,"2º",null,"3º"]
[null,null,null,null,null,null,null,"H","M","H","M","H","M","H","M","H","M","H","M","H","M","H","M","H","M","H","M","H","M"]
["00",null,"TOTAL RETIRADOS",null,null,null,null,{"$f":"SUM(H49:H55)","v":0},0,0,0,0,0,0,0,0,0,0,0,0,0,0,0,0,0,0,0,0,0]
["01",null,"Situación económica",null,null,null,null,{"$f":"SUM(J49,L49,N49,P49,R49,T49,V49,X49,Z49,AB49)","v":0},0]
["02",null,"Violencia",null,null,null,null,0,0]
["03",null,"Enfermedad",null,null,null,null,0,0]
["04",null,"Trabajo infantil",null,null,null,null,0,0]
["05",null,"Apoyo a las labores agrícolas",null,null,null,null,0,0]
["06",null,"Adicción",null,null,null,null,0,0]
["07",null,"Otros",null,null,null,null,0,0]
[null,null,"Nota.- Los totales de esta tabla deben ser iguales a los reportados en el rubro “Retirados” de la tabla 101."]
[]
[null,null,"DATOS DEL DIRECTOR Y/O RESPONSABLE (S) DEL LLENADO DE LA CÉDULA"]
[]
[null,null,"NOMBRES Y APELLIDOS",null,null,null,null,null,null,null,"CARGO",null,null,null,null,null,"CORREO ELECTRÓNICO",null,null,null,null,null,null,null,"TELÉFONO"]
["1"]
["2"]
["3"]
[]
[]
[]
["DIRECTOR(A)"]
["SUB DIRECTOR(A)"]
["DOCENTE"]
["COORDINADOR(A)"]
["ASESOR"]
["ADMINISTRATIVO"]
["ASISTENTE"]
["AUXILIAR"]
["SECRETARIA(O)"]
["ESTADÍSTICO"]
["ESPECIALISTA"]
["BIBLIOTECARIO"]
["CARE"]
["COMANDANTE PNP"]
["CONTADOR"]
["DAIP"]
["DIGITADOR(A)"]
["GERENTE"]
["JEFE ACADÉMICO"]
["JEFE ADMINISTRATIVO"]
["JEFE DE ÁREA"]
["JEFE DE LABORATORIO"]
["JEFE DE PERSONAL"]
["JEFE DE SEDE"]
["JEFE DE UNIDAD"]
["OFICINISTA"]
["OPERADOR DE SISTEMAS"]
["PERSONAL DE SERVICIO"]
["PROGRAMADOR"]
["PROMOTOR(A)"]
["PSICOLOGO"]
["REGISTRADOR(A)"]
["REPRESENTANTE LEGAL"]
["SOPORTE TECNOLOGICO"]
["TÉCNICO ADMINISTRATIVO"]
["TESORERO(A)"]
["TRABAJADOR SOCIAL"]
["TUTOR"]
["OTROS"]

{"sheet":"Enviar","index":2,"n_rows":9,"n_cols":3,"rows_kept":9,"cut":false,"hidden":true,"merged":[[0,0,0,3],[1,0,1,3]]}
["CENSO ESCOLAR 2022"]
["RESULTADO DEL EJERCICIO EDUCATIVO"]
[]
[]
[null,"Paso 1:","Realice el ENVÍO con su clave EOL."]
[]
[null,"Paso 2:","Una vez realizado el ENVÍO,  Revise su constancia de envio."]
[]
[null,"  ADVERTENCIA","Asegúrese de registrar toda la información del nivel informante"]